bitfinex-derivatives/quotes_SOLF0:USTF0_20250507
["timestamp","ask_amount","ask_price","bid_price","bid_amount"]
[1746656224741,6.7807,147.46,147.43,6.7816]
[1746656225746,6.7807,147.46,147.44,6.7813]
[1746656226044,32.72,147.54,147.43,5.79667367]
[1746656226240,32.72,147.54,147.44,6.4996]
[1746656226442,6.7784,147.51,147.44,6.4996]
[1746656226939,6.7779,147.52,147.49,6.7787]
[1746656227745,6.7775,147.53,147.44,6.4996]
[1746656228345,6.7775,147.53,147.5,6.7783]
[1746656229345,6.7777,147.52,147.5,6.7783]
[1746656229545,6.7777,147.52,147.49,6.7788]
[1746656230246,5.79667367,147.53,147.48,6.7794]
[1746656230447,5.79667367,147.53,147.44,6.4996]
[1746656230847,6.7791,147.49,147.44,6.4996]
[1746656231348,6.7791,147.49,147.46,6.7802]
[1746656231748,6.7796,147.48,147.46,6.7802]
[1746656231945,32.72,147.5,147.45,6.7807]
[1746656232151,38.51667367,147.5,147.44,2.1809]
[1746656232352,6.7803,147.47,147.4,38.51667367]
[1746656233051,6.7804,147.46,147.44,6.7811]
[1746656233749,6.781,147.45,147.43,6.7817]
[1746656233950,6.781,147.45,147.4,32.72]
[1746656234149,6.7807,147.46,147.43,6.7817]
[1746656236153,38.51667367,147.5,147.4,32.72]
[1746656236352,32.72,147.5,147.4,38.51667367]
[1746656236751,6.7794,147.49,147.46,6.7802]
[1746656237852,6.7796,147.48,147.46,6.7802]
[1746656238047,6.7796,147.48,147.45,6.7806]
[1746656245256,6.7796,147.48,147.46,6.7804]
[1746656245556,6.7793,147.49,147.46,6.7804]
[1746656246257,6.7795,147.48,147.46,6.7804]
[1746656248757,6.7795,147.48,147.45,6.7807]
[1746656249056,6.7795,147.48,147.4,38.51667367]
[1746656249252,6.78,147.47,147.45,6.7807]
[1746656249856,6.7798,147.48,147.45,6.7807]
[1746656250760,6.7801,147.47,147.45,6.7807]
[1746656251153,32.72,147.5,147.4,38.51667367]
[1746656251361,6.7798,147.48,147.46,6.7804]
[1746656254461,6.7798,147.48,147.45,6.7806]
[1746656254960,6.7801,147.47,147.45,6.7806]
[1746656257162,6.7801,147.47,147.44,6.7811]
[1746656259371,6.7801,147.47,147.45,6.7809]
[1746656260772,6.7797,147.48,147.46,6.7804]
[1746656262168,6.78,147.47,147.45,6.7807]
[1746656264874,6.78,147.47,147.44,4.1255]
[1746656265374,6.78,147.47,147.45,6.7809]
[1746656266275,6.7799,147.48,147.45,6.7809]
[1746656267378,6.7799,147.48,147.46,6.7803]
[1746656267569,6.7799,147.48,147.44,4.1255]
[1746656268076,6.7799,147.48,147.45,6.7806]
[1746656268476,6.78,147.47,147.45,6.7806]
[1746656270178,6.78,147.47,147.44,10.9066]
[1746656270373,6.7807,147.46,147.44,4.1255]
[1746656270778,6.7807,147.46,147.44,10.9068]
[1746656274679,6.7809,147.45,147.44,4.1255]
[1746656274879,3.70832215,147.47,147.41,3.70832215]
[1746656275880,6.7811,147.45,147.41,3.70832215]
[1746656276979,6.7811,147.45,147.42,6.782]
[1746656277175,3.70832215,147.45,147.39,32.6]
[1746656277376,32.6,147.44,147.38,4.1674]
[1746656277578,3.70832215,147.4,147.37,6.7844]
[1746656277880,3.70832215,147.38,147.34,6.198]
[1746656278079,3.70832215,147.39,147.36,6.7848]
[1746656278279,3.70832215,147.39,147.34,6.198]
[1746656278681,6.7844,147.38,147.34,6.198]
[1746656278881,3.70832215,147.39,147.34,6.198]
[1746656279280,10.49222215,147.39,147.34,6.198]
[1746656279682,6.7839,147.39,147.34,6.198]
[1746656279876,32.6,147.44,147.34,6.198]
[1746656280283,6.7834,147.4,147.37,6.7844]
[1746656280483,5.80225509,147.42,147.37,6.7844]
[1746656281184,6.7837,147.39,147.36,6.7848]
[1746656281485,5.80225509,147.42,147.34,6.198]
[1746656281684,6.784,147.39,147.36,6.7849]
[1746656282986,6.784,147.39,147.37,6.7845]
[1746656283289,6.784,147.39,147.34,6.198]
[1746656283485,6.784,147.39,147.36,6.7848]
[1746656284089,6.7842,147.38,147.36,6.7848]
[1746656284792,6.7838,147.39,147.36,6.7848]
[1746656285692,6.7842,147.38,147.36,6.7848]
[1746656285891,5.80225509,147.42,147.37,6.7846]
[1746656286589,6.7836,147.4,147.37,6.7846]
[1746656286788,32.6,147.44,147.34,6.198]
[1746656287187,6.7824,147.42,147.34,6.198]
[1746656287493,6.7824,147.42,147.39,6.7834]
[1746656289690,32.6,147.44,147.34,6.198]
[1746656289891,5.80225509,147.42,147.34,6.198]
[1746656290195,6.7846,147.38,147.35,6.7853]
[1746656290398,32.5,147.4,147.35,6.7853]
[1746656291196,32.5,147.4,147.34,4.192]
[1746656291396,32.5,147.4,147.3,2.0177]
[1746656291596,5.80225509,147.39,147.3,2.0177]
[1746656292294,6.7866,147.33,147.3,8.8052]
[1746656293500,6.7866,147.33,147.31,6.7873]
[1746656294696,38.30225509,147.36,147.3,2.0177]
[1746656294901,38.30225509,147.36,147.29,4.1184]
[1746656295195,6.7862,147.34,147.31,6.7871]
[1746656295600,6.7862,147.34,147.29,4.1184]
[1746656296406,6.7862,147.34,147.31,6.7869]
[1746656296594,6.7857,147.35,147.29,4.1184]
[1746656296901,6.7857,147.35,147.32,6.7866]
[1746656297202,6.786,147.34,147.32,6.7866]
[1746656297902,6.786,147.34,147.31,6.7871]
[1746656303201,6.786,147.34,147.29,4.1184]
[1746656303802,6.786,147.34,147.31,6.787]
[1746656305212,6.786,147.34,147.32,6.7868]
[1746656305508,32.5,147.36,147.32,6.7868]
[1746656305802,6.7861,147.34,147.32,6.7868]
[1746656309009,6.7864,147.33,147.3,6.7873]
[1746656309810,6.7869,147.32,147.3,6.7873]
[1746656310709,32.5,147.36,147.29,4.1184]
[1746656311309,6.786,147.34,147.32,6.7866]
[1746656312212,39.2853,147.36,147.33,6.786]
[1746656313711,39.2853,147.36,147.29,4.1184]
[1746656314313,39.2853,147.36,147.33,6.7861]
[1746656314513,6.7855,147.35,147.29,4.1184]
[1746656314706,32.5,147.36,147.29,4.1184]
[1746656315011,6.7858,147.35,147.29,4.1184]
[1746656315809,6.7851,147.36,147.29,9.92065509]
[1746656316011,32.52,147.38,147.3,32.52]
[1746656316612,6.7857,147.35,147.3,32.52]
[1746656317717,6.7857,147.35,147.33,6.7862]
[1746656318106,6.786,147.34,147.3,32.52]
[1746656318411,32.52,147.38,147.31,6.787]
[1746656319520,6.7868,147.33,147.3,6.7875]
[1746656320120,6.7868,147.33,147.31,6.7872]
[1746656320521,6.7862,147.34,147.31,6.7872]
[1746656320721,32.52,147.38,147.3,6.7876]
[1746656321820,6.7867,147.33,147.3,6.7876]
[1746656322118,32.52,147.38,147.29,4.1184]
[1746656322519,6.7853,147.36,147.33,6.7864]
[1746656323616,6.7853,147.36,147.29,4.1184]
[1746656323818,6.7853,147.36,147.34,6.7859]
[1746656324218,6.7856,147.35,147.33,6.7862]
[1746656327826,6.7853,147.36,147.34,6.7859]
[1746656328123,32.52,147.38,147.29,1.9956]
[1746656328325,6.7855,147.35,147.29,1.9956]
[1746656329225,6.7855,147.35,147.33,6.7862]
[1746656330725,6.7853,147.36,147.34,6.786]
[1746656330924,32.52,147.38,147.29,1.9956]
[1746656331221,32.52,147.38,147.3,5.80225509]
[1746656331728,32.52,147.38,147.31,32.4]
[1746656331924,39.3042,147.38,147.36,6.7848]
[1746656332318,5.80225509,147.44,147.33,1.9819]
[1746656332518,32.4,147.42,147.34,2.1332]
[1746656333127,6.783,147.41,147.39,6.7834]
[1746656333923,6.783,147.41,147.38,6.7839]
[1746656334329,6.7832,147.4,147.34,2.1332]
[1746656334522,618.9,147.43,147.36,6.7847]
[1746656334722,618.9,147.43,147.34,2.1332]
[1746656335022,6.7839,147.39,147.37,6.7846]
[1746656335219,6.7839,147.39,147.34,2.1332]
[1746656335529,618.9,147.43,147.34,2.1332]
[1746656335727,6.7847,147.37,147.35,6.7855]
[1746656336025,618.9,147.43,147.34,2.1332]
[1746656336327,6.7854,147.36,147.33,8.7681]
[1746656336527,6.7854,147.36,147.33,6.7862]
[1746656336727,6.7855,147.35,147.33,6.7862]
[1746656337227,32.4,147.38,147.33,6.7862]
[1746656337429,32.4,147.38,147.32,6.7866]
[1746656337728,32.4,147.38,147.29,4.0599]
[1746656337928,32.4,147.38,147.37,6.7846]
[1746656338227,32.4,147.38,147.31,5.80225509]
[1746656338427,32.4,147.38,147.32,2.1228]
[1746656338727,32.4,147.38,147.32,34.5228]
[1746656338930,32.4,147.38,147.37,6.7846]
[1746656339424,32.4,147.38,147.32,34.5228]
[1746656339629,32.4,147.38,147.36,6.7848]
[1746656339827,39.1841,147.38,147.32,34.5228]
[1746656340028,39.1841,147.38,147.35,6.7853]
[1746656340229,6.7856,147.35,147.29,36.4599]
[1746656340627,32.4,147.38,147.31,6.787]
[1746656340827,6.7862,147.34,147.31,6.787]
[1746656341831,6.7862,147.34,147.32,6.7868]
[1746656342032,32.4,147.38,147.29,36.4599]
[1746656342531,6.786,147.34,147.32,6.7866]
[1746656343429,6.7856,147.35,147.33,6.7864]
[1746656344631,6.786,147.34,147.32,6.7867]
[1746656345131,32.4,147.38,147.32,6.7867]
[1746656345334,6.7854,147.36,147.29,36.4599]
[1746656345832,6.7854,147.36,147.34,6.7857]
[1746656346033,6.7854,147.36,147.29,36.4599]
[1746656346434,6.7854,147.36,147.33,6.786]
[1746656346635,6.7854,147.36,147.29,36.4599]
[1746656346830,6.7854,147.36,147.29,42.26215509]
[1746656347133,6.7848,147.37,147.34,6.7856]
[1746656347733,6.7843,147.38,147.35,6.7853]
[1746656348039,6.7843,147.38,147.29,42.26215509]
[1746656348534,6.7843,147.38,147.36,6.785]
[1746656348932,6.7843,147.38,147.29,42.26215509]
[1746656349737,6.7843,147.38,147.35,6.7852]
[1746656351241,32.4,147.39,147.34,6.7858]
[1746656351936,32.4,147.39,147.33,6.7862]
[1746656352626,6.7855,147.35,147.33,6.7862]
[1746656352936,5.80225509,147.38,147.29,4.0599]
[1746656353135,6.7868,147.33,147.29,4.0599]
[1746656353634,6.7868,147.33,147.3,6.7874]
[1746656354036,6.787,147.32,147.29,10.8479]
[1746656355332,38.08225509,147.35,147.29,4.0599]
[1746656355536,38.08225509,147.35,147.26,34.2732]
[1746656355737,38.08225509,147.35,147.28,6.7885]
[1746656356838,6.7876,147.31,147.28,6.7885]
[1746656357641,6.7878,147.3,147.28,6.7885]
[1746656357840,6.7878,147.3,147.27,6.789]
[1746656358042,6.7878,147.3,147.26,34.2732]
[1746656358439,6.7878,147.3,147.28,6.7887]
[1746656358640,6.7875,147.31,147.28,6.7887]
[1746656360643,6.7875,147.31,147.26,34.2732]
[1746656360644,32.28,147.35,147.26,40.07545509]
[1746656360839,32.28,147.35,147.27,4.2246]
[1746656361149,6.7866,147.33,147.31,6.7873]
[1746656369257,32.28,147.35,147.27,4.2246]
[1746656369454,32.28,147.35,147.29,5.80225509]
[1746656369647,5.80225509,147.42,147.29,5.80225509]
[1746656369952,6.7853,147.36,147.33,6.786]
[1746656370256,6.7855,147.35,147.29,5.80225509]
[1746656370456,32.28,147.41,147.29,5.80225509]
[1746656370656,32.28,147.41,147.3,32.28]
[1746656370949,32.28,147.41,147.31,2.0537]
[1746656371356,6.7855,147.36,147.32,6.7866]
[1746656371556,32.28,147.41,147.32,6.7866]
[1746656372559,32.28,147.41,147.33,6.7864]
[1746656372858,32.28,147.41,147.31,2.0537]
[1746656373057,13.5666,147.4,147.27,4.2246]
[1746656373264,5.80225509,147.37,147.27,4.2246]
[1746656373455,32.28,147.36,147.27,4.2246]
[1746656374262,6.7878,147.31,147.27,11.0136]
[1746656374660,32.28,147.36,147.27,4.2246]
[1746656375062,32.28,147.36,147.28,6.7886]
[1746656375662,5.80225509,147.34,147.27,4.2246]
[1746656376165,6.7881,147.3,147.27,4.2246]
[1746656376862,32.28,147.32,147.27,4.2246]
[1746656377864,39.0672,147.32,147.29,6.788]
[1746656378065,32.28,147.32,147.27,4.2246]
[1746656378561,39.0671,147.32,147.29,6.7882]
[1746656378762,32.28,147.32,147.27,4.2246]
[1746656378961,32.28,147.35,147.27,4.2246]
[1746656379266,6.7867,147.33,147.27,4.2246]
[1746656379464,32.28,147.35,147.27,4.2246]
[1746656379667,6.7868,147.33,147.29,6.7879]
[1746656379965,32.28,147.35,147.29,6.7879]
[1746656380668,32.28,147.35,147.3,6.7878]
[1746656380865,32.28,147.35,147.27,4.2246]
[1746656381060,32.28,147.35,147.27,42.22685509]
[1746656381365,32.28,147.35,147.31,6.7871]
[1746656381563,32.28,147.35,147.27,36.4246]
[1746656382057,6.7866,147.33,147.27,36.4246]
[1746656382865,6.7866,147.33,147.3,6.7875]
[1746656385769,6.7866,147.33,147.31,6.7873]
[1746656388871,6.7861,147.34,147.32,6.7869]
[1746656391078,39.0657,147.35,147.33,6.7864]
[1746656391375,32.28,147.35,147.27,42.22685509]
[1746656391571,6.786,147.34,147.31,6.7869]
[1746656391772,6.786,147.34,147.27,42.22685509]
[1746656393672,6.786,147.34,147.31,6.7869]
[1746656394178,6.786,147.34,147.32,6.7868]
[1746656398077,6.786,147.34,147.31,6.7871]
[1746656399477,6.7865,147.33,147.31,6.7871]
[1746656401377,6.7862,147.34,147.32,6.7869]
[1746656402875,32.2,147.37,147.27,42.22685509]
[1746656403074,6.7864,147.33,147.31,6.7871]
[1746656403374,32.2,147.37,147.27,42.22685509]
[1746656403582,6.7862,147.34,147.32,6.7869]
[1746656404685,6.7862,147.34,147.31,6.7871]
[1746656404980,6.7864,147.33,147.31,6.7871]
[1746656405182,32.2,147.37,147.32,6.7868]
[1746656406281,6.7863,147.34,147.32,6.7868]
[1746656406783,6.7864,147.33,147.31,6.7871]
[1746656407781,6.7858,147.35,147.27,42.22685509]
[1746656407982,32.2,147.38,147.27,42.22685509]
[1746656409185,19.36775509,147.42,147.3,5.80225509]
[1746656409379,32.2,147.41,147.31,2.1279]
[1746656410087,6.7843,147.38,147.36,6.7848]
[1746656412183,6.7839,147.39,147.37,6.7846]
[1746656421599,32.12,147.41,147.32,4.2818]
[1746656422301,6.7851,147.36,147.34,6.7857]
[1746656423795,5.80225509,147.42,147.32,4.2818]
[1746656424101,5.80225509,147.39,147.27,32.12]
[1746656424294,6.7865,147.33,147.31,6.7871]
[1746656424601,37.92225509,147.36,147.28,1.9999]
[1746656424899,6.7876,147.31,147.28,8.7884]
[1746656426395,6.7868,147.33,147.28,1.9999]
[1746656426602,32.12,147.35,147.28,1.9999]
[1746656426900,6.7861,147.34,147.31,6.7869]
[1746656427805,6.7861,147.34,147.32,6.7868]
[1746656433508,38.9056,147.35,147.33,6.7864]
[1746656434515,38.9056,147.35,147.32,6.7865]
[1746656434812,6.786,147.34,147.32,6.7865]
[1746656435214,32.12,147.35,147.32,6.7865]
[1746656435510,6.786,147.34,147.32,6.7865]
[1746656438509,38.9057,147.35,147.32,6.7865]
[1746656439813,38.9057,147.35,147.33,6.7864]
[1746656447318,6.786,147.34,147.33,6.7864]
[1746656447619,6.786,147.34,147.32,6.7867]
[1746656448815,42.62147432,147.35,147.33,6.7864]
[1746656449816,10.50147432,147.35,147.33,6.7864]
[1746656450318,42.54117432,147.36,147.33,6.7864]
[1746656452018,6.7855,147.35,147.33,6.7864]
[1746656454114,6.786,147.34,147.33,6.7864]
[1746656454319,6.786,147.34,147.32,6.7866]
[1746656455520,6.7864,147.33,147.31,6.7872]
[1746656456317,6.7869,147.32,147.3,6.7876]
[1746656456518,3.71567432,147.34,147.29,2.1244]
[1746656457322,6.7873,147.31,147.29,8.9124]
[1746656457522,3.71567432,147.32,147.28,1.9999]
[1746656457722,6.7885,147.29,147.27,6.7891]
[1746656458621,6.788,147.3,147.28,6.7887]
[1746656458922,6.788,147.3,147.25,3.71567432]
[1746656459625,6.788,147.3,147.28,6.7886]
[1746656460924,6.788,147.3,147.24,34.0689]
[1746656460925,6.788,147.3,147.27,6.7889]
[1746656461625,6.788,147.3,147.28,6.7886]
[1746656461826,32.04,147.32,147.24,34.0689]
[1746656462126,32.04,147.35,147.32,6.7868]
[1746656462515,38.8257,147.35,147.28,32.04]
[1746656462724,38.8257,147.35,147.29,6.1232]
[1746656464033,6.786,147.34,147.29,6.1232]
[1746656464926,6.786,147.34,147.32,6.7867]
[1746656465526,38.8257,147.35,147.33,6.7863]
[1746656466327,32.04,147.35,147.33,6.7863]
[1746656466527,32.04,147.35,147.34,6.786]
[1746656466728,32.04,147.35,147.29,6.1232]
[1746656467027,38.8258,147.35,147.32,6.7865]
[1746656467227,38.8258,147.35,147.29,6.1232]
[1746656469127,38.8258,147.35,147.32,6.7865]
[1746656469327,38.8258,147.35,147.29,6.1232]
[1746656469627,38.8258,147.35,147.32,6.7865]
[1746656469927,32.04,147.35,147.29,6.1232]
[1746656470326,32.04,147.35,147.31,6.7871]
[1746656471131,32.04,147.35,147.29,12.9113]
[1746656471327,37.84795938,147.35,147.29,4.0898]
[1746656471629,6.7878,147.31,147.29,4.0898]
[1746656472730,6.7878,147.31,147.29,1.992]
[1746656472927,6.7878,147.31,147.28,6.7885]
[1746656473730,6.7878,147.3,147.28,6.7885]
[1746656474231,6.7876,147.31,147.28,6.7885]
[1746656474630,37.84795938,147.35,147.27,6.789]
[1746656474834,6.7881,147.3,147.27,6.789]
[1746656475630,6.7881,147.3,147.28,6.7886]
[1746656476737,37.84795938,147.35,147.25,36.0975]
[1746656477326,6.7872,147.32,147.25,36.0975]
[1746656477534,6.7872,147.32,147.29,6.7879]
[1746656477831,37.84795938,147.35,147.25,36.0975]
[1746656478022,6.7876,147.31,147.29,6.7883]
[1746656478828,31.94,147.33,147.3,6.7877]
[1746656479130,31.94,147.33,147.25,36.0975]
[1746656479833,6.7874,147.31,147.29,6.788]
[1746656480832,6.7872,147.32,147.29,6.788]
[1746656481033,6.7872,147.32,147.25,36.0975]
[1746656481433,6.7872,147.32,147.3,6.7876]
[1746656482135,38.7265,147.33,147.31,6.7873]
[1746656482326,31.94,147.36,147.25,41.90545938]
[1746656482723,31.94,147.36,147.32,6.7867]
[1746656483227,6.7859,147.35,147.32,6.7867]
[1746656483432,31.94,147.36,147.32,6.7867]
[1746656483734,6.7856,147.35,147.32,6.7867]
[1746656484033,31.94,147.36,147.32,6.7867]
[1746656484437,6.7856,147.35,147.32,6.7867]
[1746656484729,31.94,147.36,147.33,6.7862]
[1746656484921,31.94,147.36,147.29,31.94]
[1746656485127,31.94,147.39,147.34,6.7859]
[1746656486034,6.7852,147.36,147.34,6.7859]
[1746656486536,31.94,147.39,147.3,6.3118]
[1746656486731,6.7848,147.37,147.35,6.7855]
[1746656489637,6.7843,147.38,147.36,6.785]
[1746656489933,31.94,147.39,147.31,5.80795938]
[1746656490237,6.7848,147.37,147.35,6.7853]
[1746656490534,31.94,147.39,147.35,6.7853]
[1746656491237,6.7845,147.38,147.35,6.7853]
[1746656491437,31.94,147.39,147.34,6.7856]
[1746656492238,6.7848,147.37,147.34,6.7856]
[1746656492935,6.7848,147.37,147.35,6.7855]
[1746656496845,6.7848,147.37,147.31,5.80795938]
[1746656497643,6.7848,147.37,147.34,6.7855]
[1746656497844,6.7848,147.37,147.31,5.80795938]
[1746656498945,6.7848,147.37,147.35,6.7854]
[1746656504054,31.94,147.39,147.35,6.7854]
[1746656504253,6.7844,147.38,147.36,6.785]
[1746656509656,38.7239,147.39,147.36,6.785]
[1746656510055,31.94,147.39,147.36,6.785]
[1746656510251,6.7841,147.38,147.36,6.785]
[1746656511752,6.7834,147.4,147.38,6.7841]
[1746656512259,31.82,147.42,147.33,31.82]
[1746656512557,6.7839,147.39,147.37,6.7844]
[1746656512856,31.82,147.42,147.37,6.7844]
[1746656513056,6.7835,147.4,147.37,6.7844]
[1746656513258,31.82,147.42,147.33,31.82]
[1746656514456,38.6024,147.42,147.39,6.7833]
[1746656514955,6.7828,147.41,147.39,6.7833]
[1746656515158,31.82,147.42,147.39,6.7833]
[1746656515557,38.6026,147.42,147.39,6.7833]
[1746656517556,6.7827,147.41,147.39,6.7833]
[1746656519961,3.71224067,147.4,147.33,31.82]
[1746656520158,3.71224067,147.38,147.33,31.82]
[1746656520360,10.49664067,147.38,147.35,6.7851]
[1746656521161,3.71224067,147.4,147.33,31.82]
[1746656521357,3.71224067,147.41,147.34,3.71224067]
[1746656521761,31.82,147.42,147.35,4.0339]
[1746656522563,31.82,147.42,147.38,6.7837]
[1746656522564,6.783,147.41,147.38,6.7837]
[1746656522963,31.82,147.42,147.38,6.7837]
[1746656523765,6.7828,147.41,147.38,6.7837]
[1746656524068,31.82,147.42,147.38,6.7837]
[1746656524768,6.7828,147.41,147.38,6.7837]
[1746656525067,31.82,147.42,147.38,6.7837]
[1746656525269,6.7832,147.41,147.38,6.7837]
[1746656525870,38.6025,147.42,147.4,6.7831]
[1746656526170,31.82,147.42,147.35,4.0339]
[1746656526367,6.7832,147.4,147.37,6.7843]
[1746656526669,31.82,147.42,147.37,6.7843]
[1746656526971,6.7837,147.39,147.37,6.7843]
[1746656527274,31.82,147.42,147.35,4.0339]
[1746656527469,6.7845,147.38,147.33,31.82]
[1746656527667,5.80089636,147.41,147.33,31.82]
[1746656528969,5.80089636,147.41,147.35,6.7852]
[1746656529772,6.7843,147.38,147.35,6.7852]
[1746656530775,6.7843,147.38,147.36,6.785]
[1746656531470,6.784,147.39,147.36,6.785]
[1746656532179,6.7841,147.38,147.36,6.785]
[1746656532477,5.80089636,147.41,147.35,6.7854]
[1746656532774,6.7848,147.37,147.35,6.7854]
[1746656533277,6.7844,147.38,147.35,6.7854]
[1746656533475,6.7844,147.38,147.33,31.82]
[1746656534577,6.7844,147.38,147.35,6.7852]
[1746656535175,6.7844,147.38,147.36,6.7849]
[1746656537980,6.7846,147.37,147.35,6.7852]
[1746656539678,6.7855,147.35,147.33,6.7862]
[1746656539868,31.7,147.38,147.31,4.2063]
[1746656540372,6.7858,147.35,147.32,6.7866]
[1746656540576,31.7,147.38,147.32,6.7866]
[1746656540979,6.7862,147.34,147.32,6.7866]
[1746656541981,6.7857,147.35,147.32,6.7866]
[1746656542381,6.7857,147.35,147.33,6.7864]
[1746656542581,6.7852,147.36,147.31,4.2063]
[1746656542982,6.7852,147.36,147.33,6.7861]
[1746656544278,31.7,147.41,147.31,4.2063]
[1746656544484,31.7,147.41,147.32,5.80089636]
[1746656545784,38.483,147.41,147.32,5.80089636]
[1746656546685,38.483,147.41,147.38,6.7839]
[1746656548893,31.7,147.41,147.34,31.7]
[1746656549183,623.90089636,147.44,147.35,1.9934]
[1746656549384,618.1,147.44,147.35,7.79429636]
[1746656549585,31.7,147.44,147.35,7.79429636]
[1746656549987,6.782,147.43,147.35,7.79429636]
[1746656550488,6.782,147.43,147.4,6.7828]
[1746656551284,6.7824,147.42,147.4,6.7828]
[1746656555491,586.38,147.51,147.4,6.7828]
[1746656555492,75.28498036,147.53,147.44,13.5622]
[1746656555696,25.76238036,147.53,147.47,5.79674784]
[1746656555894,25.76238036,147.53,147.5,5.79674784]
[1746656556093,25.76238036,147.53,147.51,31.7]
[1746656556290,25.76238036,147.53,147.52,6.7777]
[1746656558187,95.25729432,147.55,147.54,6.7768]
[1746656558393,158.7621572,147.56,147.51,40.96002997]
[1746656558989,96.1693353,147.56,147.55,6.7763]
[1746656559294,96.1693353,147.56,147.55,38.4563]
[1746656560594,2.043,147.63,147.55,31.68]
[1746656560595,2.0508,147.61,147.55,31.68]
[1746656560995,6.7744,147.6,147.55,31.68]
[1746656561294,6.7744,147.6,147.55,38.4563]
[1746656561795,6.7745,147.59,147.55,38.4563]
[1746656562596,6.7741,147.6,147.56,6.7757]
[1746656564498,6.7745,147.59,147.55,38.4562]
[1746656566500,6.7745,147.59,147.56,6.7758]
[1746656570302,6.7742,147.6,147.55,31.68]
[1746656570493,6.7742,147.6,147.57,6.7753]
[1746656572713,8.8245,147.61,147.58,6.7749]
[1746656574809,6.774,147.6,147.55,31.68]
[1746656575408,6.774,147.6,147.56,6.7754]
[1746656575609,6.7745,147.59,147.56,6.7754]
[1746656579011,6.7751,147.58,147.55,38.4561]
[1746656579511,6.7746,147.59,147.55,38.4561]
[1746656580311,6.775,147.58,147.55,38.4561]
[1746656580712,2.0508,147.61,147.55,31.68]
[1746656580913,6.7743,147.6,147.55,31.68]
[1746656581608,6.7743,147.6,147.56,6.7756]
[1746656582107,6.7743,147.6,147.55,31.68]
[1746656582313,6.7743,147.6,147.57,6.7753]
[1746656583413,6.7743,147.6,147.58,6.7749]
[1746656583612,8.8245,147.61,147.58,6.7749]
[1746656584720,6.774,147.6,147.57,6.7752]
[1746656585219,6.774,147.6,147.55,31.68]
[1746656585515,6.7745,147.59,147.55,31.68]
[1746656585909,6.7745,147.59,147.57,6.7753]
[1746656586315,2.0508,147.61,147.55,31.68]
[1746656587415,6.7747,147.59,147.56,6.7754]
[1746656588615,6.7749,147.58,147.56,6.7754]
[1746656590717,6.7747,147.59,147.56,6.7754]
[1746656590909,2.0508,147.61,147.56,6.7754]
[1746656591311,6.7749,147.59,147.56,6.7754]
[1746656593215,6.7749,147.59,147.57,6.7753]
[1746656595614,6.7742,147.6,147.57,6.7753]
[1746656596017,2.0508,147.61,147.56,6.7756]
[1746656596213,6.7751,147.58,147.55,31.68]
[1746656596621,6.7751,147.58,147.57,7.98490287]
[1746656597217,6.7751,147.58,147.55,31.68]
[1746656598018,6.7751,147.58,147.56,6.7757]
[1746656598220,6.7747,147.59,147.56,6.7757]
[1746656598521,2.0508,147.61,147.55,38.4561]
[1746656598817,6.7753,147.58,147.55,38.4561]
[1746656599219,2.0508,147.61,147.55,38.4561]